Cogmind - Beta 9.2 @@@ ROGUE MODE // 2019.11.21 @ 17:56:34 Player: TBExtent Result: Destroyed 0B10! Performance ------------- Evolutions (9) 4500 Regions Visited (21) 4200 Robots Destroyed (206) 1030 Value Destroyed (6300) 6300 Prototype IDs (77) 1540 Alien Tech Used (3) 600 Bonus (23601) 23601 TOTAL SCORE: 41771 Bonus ------- High Alert Combat Kills 1044 Follower Combat Kills 2121 Network Hubs Disabled 800 Built Enhanced Grunts 300 A7 Reached Mainframe 300 Met R17 at Cetus 500 Used Core Reset Matrix 3000 Met R17 at Research 2000 Met Sigix 2000 Escaped with Sigix 5000 Met MAIN.C 5000 Win 3000 Friendly Fire -1464 Cogmind --------- Core Integrity 1070/1600 Matter 300/300 Energy 6/100 System Corruption 10% Temperature Cool (4) Movement Flying (20) Location Tau Ceti IV Orbit Parts ------- > --- POWER (2) -------- (None) > --- PROPULSION (5) --- Experimental Q-thruster Experimental Q-thruster Experimental Q-thruster > --- UTILITY (16) ----- Experimental Signal Interpreter Advanced Melee Analysis Suite Advanced Melee Analysis Suite Advanced Melee Analysis Suite Nanoactuators Experimental Hacking Suite Experimental Hacking Suite > --- WEAPON (2) ------- (None) > --- INVENTORY (4) ---- Nanoactuators Advanced Phase Shifter Sigix Containment Pod Peak State ------------ > --- POWER ------------ Improved Quantum Reactor Improved Quantum Reactor > --- PROPULSION ------- Experimental Q-thruster Experimental Q-thruster Experimental Q-thruster Experimental Q-thruster Experimental Q-thruster > --- UTILITY ---------- Advanced Power Amplifier Medium Storage Unit Medium Storage Unit Medium Storage Unit Inertial Stasis Machine Inertial Stasis Machine Experimental Sensor Array Experimental Signal Interpreter Advanced Melee Analysis Suite Experimental Core Analyzer Advanced Armor Integrity Analyzer Advanced Hacking Suite Advanced Hacking Suite Advanced Hacking Suite Experimental Hacking Suite Experimental Hacking Suite > --- WEAPON ----------- Sigix Broadsword > --- INVENTORY -------- Improved Quantum Reactor Electron Diverter Experimental Q-thruster Inertial Stasis Machine Experimental Sensor Array Nanoactuators Nanoactuators Nanoactuators Nanoactuators Improved Stasis Canceller Advanced Phase Shifter Sigix Broadsword Sigix Containment Pod [Rating: 206] Favorites ----------- Power Improved Quantum Reactor Engine Ion Engine Power Core Light Nuclear Core Reactor Improved Quantum Reactor Propulsion Experimental Q-thruster Leg Aluminum Leg Flight Unit Experimental Q-thruster Utility Advanced Hacking Suite Device Inertial Stasis Machine Storage Medium Storage Unit Processor Advanced Signal Interpreter Hackware Advanced Hacking Suite Protection Improved Propulsion Shielding Weapon Kinetic Spear Energy Gun EM Pulse Gun Energy Cannon Advanced Plasma Cannon Ballistic Gun Improved Assault Rifle Ballistic Cannon Light Cannon Launcher Missile Launcher Special Weapon Mining Laser Impact Weapon Heavy Mace Slashing Weapon Vibroblade Piercing Weapon Kinetic Spear Build | -11 -10 -10 -9 -8 -7 -6 -6 -6 -5 -5 -4 -4 -4 -4 -4 -3 -3 -2 -2 -1 -1 ------- Run | Scr Mat Min Mat Mat Fac Fac Low Zio Pro Fac Fac Ext Cet Arc Hub Res Tes Res Qua Acc Com Slots Evolved 18 | . . . 2 2 2 2 . . . 2 2 . . . . 2 . 2 . 2 . Power 1 | . . . . . . . . . . . . . . . . . . 1 . . . Propulsion 3 | . . . 1 . . . . . . . . . . . . . . 1 . 1 . Utility 14 | . . . 1 2 2 2 . . . 2 2 . . . . 2 . . . 1 . Weapon . | . . . . . . . . . . . . . . . . . . . . . . Parts Attached 245 | . 10 3 22 14 24 14 3 3 2 37 23 2 . 7 9 15 14 18 3 13 9 Power 33 | . 2 . 2 2 2 2 . . . 6 6 . . . 1 2 1 5 . 2 . Engine 6 | . 2 . 1 . . . . . . 2 . . . . . 1 . . . . . Core 18 | . . . 1 2 2 2 . . . 4 6 . . . 1 . . . . . . Reactor 9 | . . . . . . . . . . . . . . . . 1 1 5 . 2 . Propulsion 47 | . . 1 11 5 6 5 . . . 5 5 . . . 2 2 . 3 . 1 1 Treads . | . . . . . . . . . . . . . . . . . . . . . . Leg 17 | . . 1 11 5 . . . . . . . . . . . . . . . . . Wheel . | . . . . . . . . . . . . . . . . . . . . . . Hover . | . . . . . . . . . . . . . . . . . . . . . . Flight 30 | . . . . . 6 5 . . . 5 5 . . . 2 2 . 3 . 1 1 Utility 118 | . 3 . 2 3 14 5 2 3 . 15 12 2 . 7 2 10 11 9 3 8 7 Device 41 | . . . . . 4 2 1 . . 8 3 1 . . . 5 7 2 1 2 5 Storage 12 | . 2 . 1 3 . . . . . . 1 . . . . 1 1 3 . . . Processor 19 | . . . 1 . 2 . . . . 1 4 . . . . 1 . 3 1 5 1 Hackware 31 | . . . . . 4 2 . . . 5 3 1 . 7 1 3 3 1 1 . . Protection 15 | . 1 . . . 4 1 1 3 . 1 1 . . . 1 . . . . 1 1 Artifact . | . . . . . . . . . . . . . . . . . . . . . . Weapon 47 | . 5 2 7 4 2 2 1 . 2 11 . . . . 4 1 2 1 . 2 1 Energy Gun 9 | . 2 . 3 . . . . . . . . . . . 2 . 2 . . . . Energy Cannon 2 | . . . . . . . . . . . . . . . 2 . . . . . . Ballistic Gun 9 | . . 1 4 4 . . . . . . . . . . . . . . . . . Ballistic Cannon 2 | . 1 1 . . . . . . . . . . . . . . . . . . . Launcher 1 | . . . . . . . 1 . . . . . . . . . . . . . . Special Weapon 2 | . 2 . . . . . . . . . . . . . . . . . . . . Impact Weapon 4 | . . . . . 2 2 . . . . . . . . . . . . . . . Slashing Weapon 16 | . . . . . . . . . 2 9 . . . . . 1 . 1 . 2 1 Piercing Weapon 2 | . . . . . . . . . . 2 . . . . . . . . . . . Special Melee Weapon . | . . . . . . . . . . . . . . . . . . . . . . Unidentified Prototypes 14 | . . . 2 . . . . . . 2 1 . . . . 2 5 . 1 1 . Parts Lost 89 | . 3 1 8 7 3 6 . . . 23 1 2 . . 14 . . 4 . 1 16 Power 17 | . 1 . 2 2 2 1 . . . 2 . . . . 2 . . 3 . . 2 Propulsion 22 | . . 1 3 3 . 3 . . . 5 . . . . 4 . . . . . 3 Utility 36 | . . . . . 1 1 . . . 15 1 2 . . 5 . . 1 . 1 9 Weapon 14 | . 2 . 3 2 . 1 . . . 1 . . . . 3 . . . . . 2 Highest Loss Streak 16 | . 2 1 2 1 3 3 . . . 6 1 1 . . 14 . . 3 . 1 16 Average Slot Usage (%) 91 | . 98 99 99 97 89 84 86 86 86 70 92 93 94 94 93 81 95 94 94 96 92 Engine 2 | . 13 14 7 . . . . . . . . . . . . . . . . . . Core 3 | . . . 3 9 6 5 6 6 6 3 5 5 5 5 5 . . . . . . Reactor 1 | . . . . . . . . . . . . . . . . 2 4 7 8 8 7 Leg 10 | . 28 27 32 26 1 . . . . . . . . . . . . . . . . Flight 10 | . . . . . 21 20 20 20 20 12 15 15 15 15 14 10 14 17 17 20 19 Device 6 | . . . . . 1 5 6 6 6 7 8 12 15 12 4 10 16 15 16 15 18 Storage 12 | . 18 28 22 34 8 6 6 6 6 2 4 5 5 5 5 . 3 7 13 12 7 Processor 7 | . . . 10 9 6 6 6 6 6 4 10 5 5 5 5 7 9 7 6 12 26 Hackware 22 | . . . . . 28 32 33 33 33 27 36 41 42 44 51 42 40 32 26 22 8 Protection 2 | . 7 . . . 5 5 6 6 6 3 4 1 . . . . . . . . . Energy Gun 2 | . 13 . 8 . . . . . . . . . . . . . . . . . . Ballistic Gun 4 | . 8 14 10 17 . . . . . . . . . . . . . . . . . Ballistic Cannon 1 | . 5 14 2 . . . . . . . . . . . . . . . . . . Piercing Weapon 1 | . . . . . . . . . . 1 5 5 5 5 5 4 4 1 . . . Naked Turns . | . . . . . . . . . . . . . . . . . . . . . . Heaviest Build 84 | 10 42 42 50 84 84 19 17 17 21 22 28 20 20 20 19 37 34 64 64 72 72 Greatest Support 72 | 20 20 20 33 38 35 18 17 17 17 26 29 20 20 20 20 29 39 64 64 72 72 Greatest Overweight (x) 3 | . 2 2 2 2 2 1 . . 1 3 1 . . . . 1 . . . . . Average Overweight (x) . | . . 2 1 1 . . . . . . . . . . . . . . . . . Largest Inventory Capacity 28 | . 16 16 20 28 28 8 8 8 8 8 8 8 8 8 8 10 8 16 16 16 16 Average Capacity 11 | . 9 16 16 26 9 8 8 8 8 5 7 8 8 8 7 5 7 11 16 16 12 Most Carried 28 | . 16 16 16 28 28 8 8 8 8 8 8 8 8 8 8 9 8 14 16 16 16 Average Carried 10 | . 8 15 15 25 8 5 7 7 7 5 7 7 8 7 7 4 7 10 15 15 11 Final Capacity 28 | 6 16 16 16 28 8 8 8 8 8 4 8 8 8 8 4 4 8 16 16 16 4 Final Carried 28 | 6 16 16 16 28 8 7 8 8 8 4 8 8 8 8 4 4 8 14 16 16 4 Class Distribution -------------------- 38% | Wizard-Sprinter 17% | Hacker-Sprinter 17% | Mutant 10% | Hauler-Mutant 6% | Scavenger-Mutant Dominant Class ---------------- Mutant | -10/Materials Mutant | -10/Mines Scavenger-Mutant | -9/Materials Hauler-Mutant | -8/Materials Hacker-Sprinter | -7/Factory Hacker-Sprinter | -6/Factory Hacker-Sprinter | -6/Lower Caves Hacker-Sprinter | -6/Zion Hacker-Sprinter | -5/Proximity Caves Hacker-Sprinter | -5/Factory Wizard-Sprinter | -4/Factory Wizard-Sprinter | -4/Extension Wizard-Sprinter | -4/Cetus Wizard-Sprinter | -4/Archives Wizard-Sprinter | -4/Hub_04(d) Wizard-Sprinter | -3/Research Wizard-Sprinter | -3/Testing Wizard-Sprinter | -2/Research Wizard-Sprinter | -2/Quarantine Wizard-Sprinter | -1/Access Mechanic-Sprinter | -1/Command Resources | -11 -10 -10 -9 -8 -7 -6 -6 -6 -5 -5 -4 -4 -4 -4 -4 -3 -3 -2 -2 -1 -1 ----------- Run | Scr Mat Min Mat Mat Fac Fac Low Zio Pro Fac Fac Ext Cet Arc Hub Res Tes Res Qua Acc Com Matter Collected 3829 | 192 244 157 608 837 174 . 50 20 49 400 280 15 . 70 . 155 130 120 34 206 88 Remotely . | . . . . . . . . . . . . . . . . . . . . . . Salvage Created 9673 | . 625 180 2199 1265 174 . . . . 911 320 318 . 289 567 502 383 329 10 374 1227 Parts 497 | . 36 11 136 75 4 . . . . 46 22 14 . 17 21 16 15 14 3 18 49 Haulers Intercepted 30 | . 2 . 6 4 2 . . . . 3 2 2 . . 2 3 . 2 . 2 . Recyclers Shooed 8 | . . . 5 2 . . . . . 1 . . . . . . . . . . . Parts Field Recycled . | . . . . . . . . . . . . . . . . . . . . . . Retrieved Matter . | . . . . . . . . . . . . . . . . . . . . . . Parts Self-Destructed 6 | . . . . . . . . . 6 . . . . . . . . . . . . Prevented . | . . . . . . . . . . . . . . . . . . . . . . Kills | -11 -10 -10 -9 -8 -7 -6 -6 -6 -5 -5 -4 -4 -4 -4 -4 -3 -3 -2 -2 -1 -1 ------- Run | Scr Mat Min Mat Mat Fac Fac Low Zio Pro Fac Fac Ext Cet Arc Hub Res Tes Res Qua Acc Com Combat Hostiles Destroyed 113 | . 16 6 35 25 . . . . . 8 2 1 . . 3 . . . . 2 15 Melee 28 | . . . . . . . . . . 8 2 1 . . . . . . . 2 15 Guns 64 | . 12 1 26 25 . . . . . . . . . . . . . . . . . Cannons 13 | . 2 5 6 . . . . . . . . . . . . . . . . . . AOE 4 | . 2 . 2 . . . . . . . . . . . . . . . . . . Classes Destroyed 16 | . 6 . 4 2 . . . . . 1 . . . . 1 . . . . 1 1 Worker 6 | . 1 . . . . . . . . 1 . . . . 4 . . . . . . Builder 2 | . . . . 1 . . . . . . . . . . 1 . . . . . . Tunneler 1 | . . . . . . . . . . . . . . . 1 . . . . . . Hauler 30 | . 2 . 6 4 2 . . . . 3 2 2 . . 2 3 . 2 . 2 . Recycler 8 | . . . 2 . . . . . . 2 . . . . . 1 2 1 . . . Operator 28 | . 1 . 4 3 . . . . . 1 . 2 . 8 1 3 2 2 1 . . Watcher 18 | . 2 . 2 . 3 . . . . . 1 . . . . . 2 . . 2 6 Swarmer 34 | . 8 2 4 11 . . . . . 3 . . . . . . . . . . 6 Saboteur 1 | . . . . . . . . . . . . . . . . . . . . 1 . Grunt 48 | . 8 4 21 8 . . . . . . . 1 . . 2 . . . . . 4 Brawler 2 | . . . 1 1 . . . . . . . . . . . . . . . . . Duelist 1 | . . . 1 . . . . . . . . . . . . . . . . . . Sentry 16 | . . . 8 4 . . . . . 1 . . . . 1 . . . . 1 1 Hunter 4 | . . . . 1 . . . . . . . . . . . . . . . . 3 Programmer 6 | . . . . . . . . . . 4 2 . . . . . . . . . . Behemoth 1 | . . . . . . . . . . . . . . . . . . . . . 1 Best Kill Streak 9 | . 4 2 6 7 1 . . . . 6 2 2 . 7 9 1 1 1 . 2 9 Combat Bots Only 6 | . 4 2 5 5 . . . . . 3 2 1 . . 3 . . . . 2 6 Max Kills in Single Turn 4 | . 2 1 2 2 1 . . . . 1 1 1 . 1 4 1 1 1 1 1 1 Gunslinging 1 | . 1 . . 1 . . . . . . . . . . . . . . . . . Exploded 1 | . 1 . 1 . . . . . . . . . . . . . . . . . . Melee 1 | . . . . . . . . . . 1 1 1 . . . . . . . 1 1 Uniques/NPCs Destroyed . | . . . . . . . . . . . . . . . . . . . . . . Combat | -11 -10 -10 -9 -8 -7 -6 -6 -6 -5 -5 -4 -4 -4 -4 -4 -3 -3 -2 -2 -1 -1 -------- Run | Scr Mat Min Mat Mat Fac Fac Low Zio Pro Fac Fac Ext Cet Arc Hub Res Tes Res Qua Acc Com Damage Taken 12208 | . 508 262 1214 1055 764 722 34 . . 1977 126 233 . . 1443 . 275 820 . 223 2552 Core 3348 | . 92 22 92 160 388 219 34 . . 895 37 63 . . 477 . 57 282 . 26 504 Absorbed by Shields 86 | . . . . . 12 . . . . . . . . . . . . . . . 74 Core Remaining (%) 65 | 100 . 54 77 70 44 . . . 70 10 . . . . 49 . 95 . 80 . 66 Volleys Fired 324 | . 55 16 134 109 . . 3 . . . . . . . 7 . . . . . . Largest 2 | . 2 2 2 2 . . 1 . . . . . . . 1 . . . . . . Hottest 200 | . 200 55 85 53 . . 36 . . . . . . . 98 . . . . . . Shots Fired 613 | . 106 32 248 217 . . 3 . . . . . . . 7 . . . . . . Gun 547 | . 87 16 225 217 . . . . . . . . . . 2 . . . . . . Cannon 57 | . 13 16 23 . . . . . . . . . . . 5 . . . . . . Launcher 3 | . . . . . . . 3 . . . . . . . . . . . . . . Special 6 | . 6 . . . . . . . . . . . . . . . . . . . . Kinetic 449 | . 52 32 148 217 . . . . . . . . . . . . . . . . . Thermal 26 | . 19 . . . . . . . . . . . . . 7 . . . . . . Explosive 3 | . . . . . . . 3 . . . . . . . . . . . . . . Electromagnetic 135 | . 35 . 100 . . . . . . . . . . . . . . . . . . Robot Hit Streak 15 | . 9 3 15 15 . . . . . . . . . . . . . . . . . Robot Miss Streak 7 | . 3 5 5 7 . . . . . . . . . . . . . . . . . Penetration Max 1 | . . . . 1 . . . . . . . . . . . . . . . . . Secondary Targets 8 | . 1 . 3 4 . . . . . . . . . . . . . . . . . Max Gunslinging Chain 1 | . 1 . 1 1 . . . . . . . . . . . . . . . . . Shots Hit Robots 595 | . 60 18 184 146 10 2 . . . 29 8 10 . 20 7 9 9 12 3 13 55 Core Hits 298 | . 27 11 81 51 2 . . . . 17 6 6 . 12 37 7 6 5 1 5 24 Critical Hits 25 | . 1 . . 5 . . . . . 1 . . . . 1 2 3 . . 1 11 Critical Kills 10 | . 1 . . 2 . . . . . . . . . . 1 2 1 . . . 3 Critical Parts Destroyed 13 | . . . . 2 . . . . . 1 . . . . . . 2 . . 1 7 Melee Attacks 607 | . . . . . 42 2 . . 4 77 31 23 1 25 29 47 50 83 48 63 82 Impact 44 | . . . . . 42 2 . . . . . . . . . . . . . . . Slashing 315 | . . . . . . . . . 4 45 . . . . . . 2 71 48 63 82 Piercing 248 | . . . . . . . . . . 32 31 23 1 25 29 47 48 12 . . . Sneak Attacks 58 | . . . . . 3 1 . . . 7 2 6 . 10 2 8 6 5 1 4 3 Combat Hostiles 6 | . . . . . . . . . . . . 2 . . . . . . . 1 3 Follow-up Attacks 2 | . . . . . . . . . . 1 . . . . . . 1 . . . . Damage Inflicted 25753 | . 880 257 2981 2316 557 148 . . . 1821 624 1090 . 1698 2349 1170 893 1174 346 1462 5987 Guns 5357 | . 568 133 2350 2306 . . . . . . . . . . . . . . . . . Cannons 534 | . 121 124 289 . . . . . . . . . . . . . . . . . . Explosions 2346 | . 119 . 342 . . . . . . . . . . . 1885 . . . . . . Melee 17434 | . . . . . 557 148 . . . 1821 624 1090 . 1698 464 1170 893 1174 346 1462 5987 Ramming 10 | . . . . 10 . . . . . . . . . . . . . . . . . Kinetic 4213 | . 313 257 1337 2306 . . . . . . . . . . . . . . . . . Thermal 621 | . 279 . 342 . . . . . . . . . . . . . . . . . . Explosive . | . . . . . . . . . . . . . . . . . . . . . . Electromagnetic 3475 | . 288 . 1302 . . . . . . . . . . . 1885 . . . . . . Impact 705 | . . . . . 557 148 . . . . . . . . . . . . . . . Slashing 10371 | . . . . . . . . . . 1374 . . . . . . 141 1061 346 1462 5987 Piercing 6358 | . . . . . . . . . . 447 624 1090 . 1698 464 1170 752 113 . . . Highest Corruption 10 | . . . 3 . 6 . . . . 5 . 1 1 1 7 . 1 2 2 3 10 Average Corruption 2 | . . . 3 . 2 . . . . 3 . 1 1 1 1 . 1 1 2 3 3 Corruption Purged . | . . . . . . . . . . . . . . . . . . . . . . Effects 44 | . . . 19 . 3 . . . . 5 . 1 2 . 2 . . . 2 1 9 Message Errors 12 | . . . 7 . . . . . . 1 . . . . 2 . . . . . 2 Matter Fused 6 | . . . 1 . 1 . . . . 1 . . . . . . . . . 1 2 Heat Flow Errors 4 | . . . 1 . . . . . . 1 . . . . . . . . 1 . 1 Energy Discharges 6 | . . . 2 . 1 . . . . . . 1 1 . . . . . . . 1 Data Loss (minor) 6 | . . . 4 . 1 . . . . 1 . . . . . . . . . . . Targeting Errors 9 | . . . 3 . . . . . . 1 . . 1 . . . . . 1 . 3 Weapon Failures 1 | . . . 1 . . . . . . . . . . . . . . . . . . Overload Shots . | . . . . . . . . . . . . . . . . . . . . . . Overflow Damage 2128 | . 14 . 5 . 165 16 . . . 258 . 13 . 490 36 101 111 223 60 . 636 Projectiles 19 | . 14 . 5 . . . . . . . . . . . . . . . . . . Explosions 36 | . . . . . . . . . . . . . . . 36 . . . . . . Melee 2073 | . . . . . 165 16 . . . 258 . 13 . 490 . 101 111 223 60 . 636 Knockbacks 4 | . . . 3 . 1 . . . . . . . . . . . . . . . . Impact 1 | . . . . . 1 . . . . . . . . . . . . . . . . Kinetic 2 | . . . 2 . . . . . . . . . . . . . . . . . . Secondary 1 | . . . 1 . . . . . . . . . . . . . . . . . . Self-Inflicted Damage 379 | . . . 71 . . . 35 . . . . . . . 273 . . . . . . Shots 9 | . . . 4 . . . 1 . . . . . . . 4 . . . . . . Rammed . | . . . . . . . . . . . . . . . . . . . . . . Targets Rammed 1 | . . . . 1 . . . . . . . . . . . . . . . . . Kicked 1 | . . . . 1 . . . . . . . . . . . . . . . . . Crushed . | . . . . . . . . . . . . . . . . . . . . . . Highest Temperature 276 | . 168 23 114 56 . . . . . 164 . . . . 120 . . 65 251 152 276 Average Temperature 31 | . 40 9 23 14 . . . . . 76 . . . . 43 . . 14 121 44 41 Received Heat Transfer 1671 | . 123 123 471 342 24 45 . . . 282 9 18 . . 117 . . 45 . 27 45 Siege Activations . | . . . . . . . . . . . . . . . . . . . . . . Robots Corrupted 4 | . . . 1 . . . . . . . . . . . 3 . . . . . . Combat Hostiles 4 | . . . 1 . . . . . . . . . . . 3 . . . . . . Parts Fried 23 | . . . 7 . 6 . . . . . . . . . 10 . . . . . . Impact Corruptions 7 | . . . . . 6 1 . . . . . . . . . . . . . . . Robots Melted . | . . . . . . . . . . . . . . . . . . . . . . Combat Hostiles . | . . . . . . . . . . . . . . . . . . . . . . Parts Melted 1 | . . . 1 . . . . . . . . . . . . . . . . . . Heat Transferred 900 | . 500 . 400 . . . . . . . . . . . . . . . . . . Parts Sabotaged . | . . . . . . . . . . . . . . . . . . . . . . Parts Stolen . | . . . . . . . . . . . . . . . . . . . . . . Parts Stripped . | . . . . . . . . . . . . . . . . . . . . . . Power Chain Reactions 8 | . 2 . 6 . . . . . . . . . . . . . . . . . . Missiles Intercepted . | . . . . . . . . . . . . . . . . . . . . . . Alert | -11 -10 -10 -9 -8 -7 -6 -6 -6 -5 -5 -4 -4 -4 -4 -4 -3 -3 -2 -2 -1 -1 ------- Run | Scr Mat Min Mat Mat Fac Fac Low Zio Pro Fac Fac Ext Cet Arc Hub Res Tes Res Qua Acc Com Peak Influence 1474 | . 336 155 713 590 478 261 . . . 189 507 503 544 396 1305 569 503 995 904 1188 1474 Average Influence 290 | . 121 82 413 357 328 136 . . . 47 192 186 400 346 149 326 92 371 754 734 1026 Maximum Alert Level 4 | . 1 . 3 2 2 1 . . . . 2 2 2 1 4 2 2 3 3 4 4 Low Security (%) 47 | . 87 100 11 9 . 86 . . . 100 71 59 13 . 77 44 96 . . . . Level 1 25 | . 12 . 40 59 71 13 . . . . 4 34 28 100 14 13 . 69 . . . Level 2 20 | . . . 38 31 28 . . . . . 23 5 57 . 4 42 3 29 23 47 25 Level 3 5 | . . . 9 . . . . . . . . . . . . . . 1 76 38 23 Level 4 1 | . . . . . . . . . . . . . . . 2 . . . . 13 50 Level 5 . | . . . . . . . . . . . . . . . . . . . . . . High Security . | . . . . . . . . . . . . . . . . . . . . . . Max Security . | . . . . . . . . . . . . . . . . . . . . . . Squads Dispatched 48 | . 1 . 5 4 3 4 . . . 6 2 2 . . 4 5 3 2 1 3 3 Investigation 9 | . 1 . 2 . 1 2 . . . 1 . . . . 2 . . . . . . Extermination 10 | . . . . . 1 . . . . 2 2 . . . . . 2 2 1 . . Reinforcement 26 | . . . 3 4 1 2 . . . 2 . 2 . . 2 5 1 . . 1 3 Assault 3 | . . . . . . . . . . 1 . . . . . . . . . 2 . Garrison . | . . . . . . . . . . . . . . . . . . . . . . Intercept . | . . . . . . . . . . . . . . . . . . . . . . Construction Impeded 2 | . . . . 1 . . . . . . . . . . 1 . . . . . . Haulers Reinforced 4 | . . . . . 1 . . . . . . . . . . 2 . . . 1 . Stealth | -11 -10 -10 -9 -8 -7 -6 -6 -6 -5 -5 -4 -4 -4 -4 -4 -3 -3 -2 -2 -1 -1 --------- Run | Scr Mat Min Mat Mat Fac Fac Low Zio Pro Fac Fac Ext Cet Arc Hub Res Tes Res Qua Acc Com Distress Signals 37 | . 3 . 6 2 . . . . . 4 . 5 2 . 1 5 . 4 1 1 3 Communications Jammed . | . . . . . . . . . . . . . . . . . . . . . . Distress Signals . | . . . . . . . . . . . . . . . . . . . . . . Times Spotted 450 | . 24 7 65 44 21 22 . . 4 58 4 20 11 16 25 3 22 18 11 24 51 Peak Tracking Total 20 | . 6 3 6 8 9 6 . . 4 12 2 5 5 1 20 1 5 14 10 8 18 Tactical Retreats 64 | . 2 2 7 3 6 7 . . . 12 . 1 . . 3 1 6 4 1 6 3 Traps | -11 -10 -10 -9 -8 -7 -6 -6 -6 -5 -5 -4 -4 -4 -4 -4 -3 -3 -2 -2 -1 -1 ------- Run | Scr Mat Min Mat Mat Fac Fac Low Zio Pro Fac Fac Ext Cet Arc Hub Res Tes Res Qua Acc Com Traps Triggered 17 | . 1 . 2 1 3 1 . . . . . 1 . . . . . 1 . 2 5 Indirectly . | . . . . . . . . . . . . . . . . . . . . . . Trap Hack Attempts . | . . . . . . . . . . . . . . . . . . . . . . Triggered . | . . . . . . . . . . . . . . . . . . . . . . Disarmed 12 | . . . . . . . . . . . . . . . . . 12 . . . . Reprogrammed . | . . . . . . . . . . . . . . . . . . . . . . Reused . | . . . . . . . . . . . . . . . . . . . . . . Traps Extracted . | . . . . . . . . . . . . . . . . . . . . . . Installed . | . . . . . . . . . . . . . . . . . . . . . . Triggered 2 | . . . . . 1 . . . . . . . . . . 1 . . . . . Machines | -11 -10 -10 -9 -8 -7 -6 -6 -6 -5 -5 -4 -4 -4 -4 -4 -3 -3 -2 -2 -1 -1 ---------- Run | Scr Mat Min Mat Mat Fac Fac Low Zio Pro Fac Fac Ext Cet Arc Hub Res Tes Res Qua Acc Com Machines Disabled 41 | . 1 . 4 1 . . . . . . . . 1 1 22 . 6 . 5 . . Max in Single Turn 17 | . 1 . 1 1 . . . . . . . . 1 . 17 . 1 . 1 . . Garrison Access 9 | . . . . . . . . . . 1 . . . . 1 1 . 1 1 4 . Network Hub 4 | . . . . . . . . . . . . . . . 4 . . . . . . Energy Cycler 2 | . . . . . . . . . . . . 2 . . . . . . . . . Machines Sabotaged . | . . . . . . . . . . . . . . . . . . . . . . Garrisons Compromised . | . . . . . . . . . . . . . . . . . . . . . . Overloaded Fab Kills . | . . . . . . . . . . . . . . . . . . . . . . Fab Network Shutdowns 5 | . . . . . . . . . . . 1 . . . . 1 1 1 . 1 . Hacking | -11 -10 -10 -9 -8 -7 -6 -6 -6 -5 -5 -4 -4 -4 -4 -4 -3 -3 -2 -2 -1 -1 --------- Run | Scr Mat Min Mat Mat Fac Fac Low Zio Pro Fac Fac Ext Cet Arc Hub Res Tes Res Qua Acc Com Machines Accessed 152 | . 7 . 9 4 5 12 . 1 . 8 7 11 3 . 10 12 11 13 17 14 8 Terminals 114 | . 7 . 8 3 4 7 . . . 5 3 11 3 . 9 9 8 8 13 8 8 Fabricators 17 | . . . . . 1 2 . . . 2 4 . . . . 1 2 4 . 1 . Repair Stations 1 | . . . . . . 1 . . . . . . . . . . . . . . . Recycling Units 2 | . . . . . . 1 . . . 1 . . . . . . . . . . . Scanalyzers 9 | . . . 1 1 . 1 . . . . . . . . . 1 1 . 3 1 . Garrison Access 8 | . . . . . . . . . . . . . . . 1 1 . 1 1 4 . Total Hacks 666 | . 23 . 31 22 8 47 . 4 . 26 45 51 6 . 38 92 69 67 66 41 30 Successful 513 | . 14 . 18 16 1 37 . 4 . 19 36 40 6 . 33 55 58 67 61 32 16 Failed 152 | . 9 . 13 6 7 9 . . . 7 9 11 . . 5 37 11 . 5 9 14 Catastrophic 19 | . . . . 1 1 . . . . . . 3 . . . 10 2 . . . 2 Database Lockouts 1 | . . . . . . 1 . . . . . . . . . . . . . . . Manual 338 | . 14 . 26 8 6 25 . . . 13 22 29 2 . 20 42 32 30 41 16 12 Terminals 530 | . 23 . 29 8 7 30 . . . 20 20 51 6 . 37 78 55 49 59 28 30 Fabricators 86 | . . . . . 1 8 . . . 5 25 . . . . 10 13 17 . 7 . Repair Stations 3 | . . . . . . 3 . . . . . . . . . . . . . . . Recycling Units 3 | . . . . . . 2 . . . 1 . . . . . . . . . . . Scanalyzers 30 | . . . 2 14 . 4 . . . . . . . . . 2 1 . 6 1 . Garrison Access 10 | . . . . . . . . . . . . . . . 1 2 . 1 1 5 . Terminal Hacks 292 | . 7 . 7 1 . 14 . 4 . 6 11 38 6 . 24 42 33 31 39 17 12 Record 21 | . . . . . . . . . . . . 1 5 . 1 3 1 3 7 . . Part Schematic 34 | . 1 . . . . 4 . 4 . 1 3 8 . . 1 4 2 . 6 . . Robot Analysis 3 | . . . . . . . . . . . . 1 . . . . . . . 2 . Prototype ID Bank 23 | . 2 . 3 . . . . . . . . 4 . . 2 3 1 5 2 . 1 Open Door 11 | . . . . . . . . . . . 1 3 1 . . . . . 2 3 1 Level Access Points 5 | . . . . . . . . . . . . . . . 1 . 1 1 1 . 1 Branch Access Points 8 | . . . . . . 1 . . . . . 1 . . 1 1 1 1 1 1 . Emergency Access Points 24 | . . . . . . 1 . . . . 1 . . . 4 5 6 2 1 . 4 Machine Index 8 | . . . . . . 1 . . . 1 . . . . 1 1 1 1 1 1 . Terminal Index 8 | . 1 . 1 1 . 1 . . . . 1 1 . . . 1 . . . . 1 Fabricator Index 4 | . . . . . . 1 . . . . 1 . . . . 1 . . . . 1 Scanalyzer Index 1 | . . . 1 . . . . . . . . . . . . . . . . . . Alert Level 4 | . . . . . . . . . . . . 1 . . . 2 1 . . . . Unreport Threat 17 | . . . . . . . . . . . . 5 . . 3 4 2 . . 3 . Locate Traps 32 | . 1 . . . . 1 . . . 2 1 3 . . 2 6 4 6 4 1 1 Disarm Traps 2 | . . . . . . . . . . . . . . . . . 2 . . . . Surveillance Status 1 | . . . . . . . . . . . . 1 . . . . . . . . . Patrol Status 1 | . . . . . . . . . . . . . . . . 1 . . . . . Recall Extermination 3 | . . . . . . . . . . . . . . . . . . 2 1 . . Recall Reinforcements 4 | . . . . . . . . . . . . 3 . . 1 . . . . . . Recall Assault 1 | . . . . . . . . . . . . . . . . . . . . 1 . Hauler Manifests 9 | . 1 . . . . 1 . . . 1 . 1 . . . 2 2 1 . . . Registered Components 10 | . 1 . . . . 2 . . . . . 1 . . 1 1 1 1 1 1 . Registered Prototypes 8 | . . . . . . . . . . . 1 2 . . 1 1 1 1 . 1 . Zone Layout 48 | . . . 2 . . 1 . . . 1 2 2 . . 5 6 7 7 12 3 . Disengage Seal 2 | . . . . . . . . . . . . . . . . . . . . . 2 Fabricator Hacks 59 | . . . . . . 6 . . . 5 14 . . . . 6 10 13 . 5 . Network Status 1 | . . . . . . . . . . . . . . . . . . 1 . . . Load Schematic 23 | . . . . . . 2 . . . 2 6 . . . . 2 4 5 . 2 . Build 35 | . . . . . . 4 . . . 3 8 . . . . 4 6 7 . 3 . Repair Station Hacks 2 | . . . . . . 2 . . . . . . . . . . . . . . . Scan Component 1 | . . . . . . 1 . . . . . . . . . . . . . . . Repair 1 | . . . . . . 1 . . . . . . . . . . . . . . . Recycling Unit Hacks 2 | . . . . . . 1 . . . 1 . . . . . . . . . . . Report Inventory 2 | . . . . . . 1 . . . 1 . . . . . . . . . . . Scanalyzer 30 | . . . 2 14 . 4 . . . . . . . . . 2 1 . 6 1 . Insert Component 17 | . . . 1 6 . 1 . . . . . . . . . 1 1 . 6 1 . Analyze 13 | . . . 1 8 . 3 . . . . . . . . . 1 . . . . . Garrison Access Hacks 8 | . . . . . . . . . . . . . . . 1 1 . 1 1 4 . Seal Access 8 | . . . . . . . . . . . . . . . 1 1 . 1 1 4 . Unauthorized Hacks 266 | . 15 . 27 7 2 21 . . . 17 23 4 . . 16 10 30 44 30 12 8 Terminals 100 | . 7 . 9 1 . 7 . . . 7 5 2 . . 8 3 11 18 15 3 4 Track 28 | . 2 . 2 . . 3 . . . 1 1 1 . . 1 . 3 5 6 1 2 Assimilate 16 | . 1 . 1 . . . . . . 2 . . . . 1 2 3 3 2 1 . Botnet 33 | . 3 . 3 1 . 3 . . . 2 2 1 . . 1 . 4 6 5 1 1 Detonate 1 | . . . . . . . . . . . . . . . 1 . . . . . . Disrupt 11 | . . . 2 . . . . . . 2 . . . . 3 . . 3 1 . . Operators 11 | . 1 . 1 . . 1 . . . . 2 . . . 1 1 1 1 1 . 1 Fabricators 19 | . . . . . 1 2 . . . . 6 . . . . 1 3 4 . 2 . Report 4 | . . . . . . . . . . . 1 . . . . . 1 1 . 1 . Siphon 12 | . . . . . . 1 . . . . 4 . . . . 1 2 3 . 1 . Haulers 3 | . . . . . 1 1 . . . . 1 . . . . . . . . . . Repair Stations . | . . . . . . . . . . . . . . . . . . . . . . Recycling Units 1 | . . . . . . 1 . . . . . . . . . . . . . . . Monitor 1 | . . . . . . 1 . . . . . . . . . . . . . . . Scanalyzers . | . . . . . . . . . . . . . . . . . . . . . . Garrison Access . | . . . . . . . . . . . . . . . . . . . . . . Data Cores Recovered 2 | . . . . 1 . . . . . . . 1 . . . . . . . . . Used . | . . . . . . . . . . . . . . . . . . . . . . Hacking Detections 90 | . 7 . 8 3 4 10 . . . 7 5 8 1 . 2 4 7 6 7 5 6 Full Trace Events 2 | . 1 . 1 . . . . . . . . . . . . . . . . . . Feedback Events . | . . . . . . . . . . . . . . . . . . . . . . Feedback Blocked . | . . . . . . . . . . . . . . . . . . . . . . Robot Schematics Acquired . | . . . . . . . . . . . . . . . . . . . . . . Robots Built . | . . . . . . . . . . . . . . . . . . . . . . Matter . | . . . . . . . . . . . . . . . . . . . . . . Time . | . . . . . . . . . . . . . . . . . . . . . . Total Robot Build Rating . | . . . . . . . . . . . . . . . . . . . . . . Part Schematics Acquired 41 | . 1 . 1 6 . 5 . 4 . 1 3 8 . . 1 5 . . 6 . . Parts Built 31 | . . . . . . 4 . . . 2 8 . . . . 3 5 5 . 4 . Matter 6729 | . . . . . . 563 . . . 650 1138 . . . . 936 1418 1225 . 799 . Time 1951 | . . . . . . 183 . . . 170 445 . . . . 222 347 397 . 187 . Total Part Build Rating 181 | . . . . . . 9 . . . 8 37 . . . . 27 35 33 . 32 . Parts Repaired 1 | . . . . . . 1 . . . . . . . . . . . . . . . Time 17 | . . . . . . 17 . . . . . . . . . . . . . . . Parts Recycled . | . . . . . . . . . . . . . . . . . . . . . . Recycled Matter . | . . . . . . . . . . . . . . . . . . . . . . Retrieved Matter . | . . . . . . . . . . . . . . . . . . . . . . Retrieved Components . | . . . . . . . . . . . . . . . . . . . . . . Parts Scanalyzed 9 | . . . 1 6 . 1 . . . . . . . . . 1 . . . . . Part Schematics Acquired 9 | . . . 1 6 . 1 . . . . . . . . . 1 . . . . . Parts Damaged . | . . . . . . . . . . . . . . . . . . . . . . Bothacking | -11 -10 -10 -9 -8 -7 -6 -6 -6 -5 -5 -4 -4 -4 -4 -4 -3 -3 -2 -2 -1 -1 ------------ Run | Scr Mat Min Mat Mat Fac Fac Low Zio Pro Fac Fac Ext Cet Arc Hub Res Tes Res Qua Acc Com Used RIF Installer . | . . . . . . . . . . . . . . . . . . . . . . Robots Hacked . | . . . . . . . . . . . . . . . . . . . . . . Non-combat . | . . . . . . . . . . . . . . . . . . . . . . Combat . | . . . . . . . . . . . . . . . . . . . . . . Robot Hacks Applied . | . . . . . . . . . . . . . . . . . . . . . . Relay Couplers Released 6 | . . . . . . . . . . . . . . . 3 3 . . . . . Machine Destruction 3 | . . . . . . . . . . . . . . . 3 . . . . . . Programmers 3 | . . . . . . . . . . . . . . . . 3 . . . . . Robots Rewired 19 | . . . . . . . . . . . . 19 . . . . . . . . . Allies Hacked 1 | . . . . . . . . . . . . . . . . . . . 1 . . Hacks Repelled . | . . . . . . . . . . . . . . . . . . . . . . Allies | -11 -10 -10 -9 -8 -7 -6 -6 -6 -5 -5 -4 -4 -4 -4 -4 -3 -3 -2 -2 -1 -1 -------- Run | Scr Mat Min Mat Mat Fac Fac Low Zio Pro Fac Fac Ext Cet Arc Hub Res Tes Res Qua Acc Com Total Allies 91 | . 1 . . . . . . 4 . 4 . 26 5 . 1 2 2 5 2 1 38 Largest Group 27 | . 1 . . . . . . 4 4 2 . 20 19 9 4 1 2 1 1 1 27 Highest-Rated Group 1040 | . 10 . . . . . . 110 110 188 . 901 1004 585 253 44 70 26 26 44 1040 Highest-Rated Ally 243 | . 10 . . . . . . 31 31 94 . 156 149 149 94 44 44 26 26 44 243 Total Orders 20 | . . . . . . . . . . 12 . . . . . 8 . . . . . EXPLORE 20 | . . . . . . . . . . 12 . . . . . 8 . . . . . Ally Attacks 399 | . . . . . . . . . 23 5 . 67 93 20 9 . . . . . 182 Total Damage 10225 | . . . . . . . . . 379 224 . 1704 3214 776 315 . . . . . 3613 Kills 64 | . . . . . . . . . 4 2 . 21 19 4 2 . . . . . 12 Allies Corrupted 2 | . . . . . . . . . . 2 . . . . . . . . . . . Allies Melted 1 | . . . . . . . . . . . . 1 . . . . . . . . . Intel | -11 -10 -10 -9 -8 -7 -6 -6 -6 -5 -5 -4 -4 -4 -4 -4 -3 -3 -2 -2 -1 -1 ------- Run | Scr Mat Min Mat Mat Fac Fac Low Zio Pro Fac Fac Ext Cet Arc Hub Res Tes Res Qua Acc Com Robot Analysis Total 3 | . . . . . . . . . . . . 1 . . . . . . . 2 . Derelict Logs Recovered 7 | . . 2 . . . . 1 2 2 . . . . . . . . . . . . Drone Launches 20 | . . . . . . . . . . 12 . . . . . 8 . . . . . Drone Recoveries . | . . . . . . . . . . . . . . . . . . . . . . Exploration | -11 -10 -10 -9 -8 -7 -6 -6 -6 -5 -5 -4 -4 -4 -4 -4 -3 -3 -2 -2 -1 -1 ------------- Run | Scr Mat Min Mat Mat Fac Fac Low Zio Pro Fac Fac Ext Cet Arc Hub Res Tes Res Qua Acc Com Turns Passed 14499 | . 1421 396 1790 1448 483 552 233 355 360 1275 841 488 375 177 404 888 1031 795 370 490 327 Spaces Moved 16306 | 1 595 187 810 577 911 937 428 643 522 1180 665 558 309 138 579 1201 1319 1318 1148 1346 934 Core 65 | . . . . . . . . . . 47 . . . . . 18 . . . . . Treads . | . . . . . . . . . . . . . . . . . . . . . . Legs 2178 | 1 595 187 810 577 8 . . . . . . . . . . . . . . . . Wheels . | . . . . . . . . . . . . . . . . . . . . . . Hover . | . . . . . . . . . . . . . . . . . . . . . . Flight 14063 | . . . . . 903 937 428 643 522 1133 665 558 309 138 579 1183 1319 1318 1148 1346 934 Fastest Speed 10 | 120 120 180 150 150 29 29 29 29 29 29 30 30 30 30 22 15 15 11 11 10 10 Average Speed 39 | 120 139 180 150 172 30 29 29 29 29 33 30 30 30 30 29 25 15 11 11 10 10 Slowest Speed 200 | 120 180 180 180 180 180 99 29 29 97 200 107 30 30 30 30 105 15 14 11 10 20 Overloaded Moves . | . . . . . . . . . . . . . . . . . . . . . . Propulsion Burnouts . | . . . . . . . . . . . . . . . . . . . . . . Robots Hopped 81 | . . . . . 4 10 . . . 4 2 9 . . 6 2 13 10 7 4 10 Cave-ins Triggered 1 | . . . . . . . . . . . . 1 . . . . . . . . . Exploration Rate (%) 54 | 2 86 47 87 37 26 22 46 82 59 46 13 64 79 82 73 60 83 39 80 38 39 Regions Visited 21 Branch Regions 11 Pre-discovered Areas 1 | . . 1 . . . . . . . . . . . . . . . . . . . Known Exits Taken 16 | . . . . . 1 1 1 1 1 1 1 1 1 1 1 1 1 1 1 1 . Unknown Exits Taken 5 | 1 1 1 1 1 . . . . . . . . . . . . . . . . . Scrap Searched 10 | . . 2 . . . . 3 3 2 . . . . . . . . . . . . Spaces Dug 378 | . . . . . 18 . 45 . 4 26 19 11 . . 20 38 34 64 39 41 19 Terrain Destroyed 1012 | . 7 . 7 . 18 . 45 . 4 26 19 11 . . 640 38 34 64 39 41 19 Melee 333 | . . . . . 18 . . . 4 26 19 11 . . 20 38 34 64 39 41 19 Projectile 1 | . . . . . . . . . . . . . . . 1 . . . . . . AOE 678 | . 7 . 7 . . . 45 . . . . . . . 619 . . . . . . Actions | -11 -10 -10 -9 -8 -7 -6 -6 -6 -5 -5 -4 -4 -4 -4 -4 -3 -3 -2 -2 -1 -1 --------- Run | Scr Mat Min Mat Mat Fac Fac Low Zio Pro Fac Fac Ext Cet Arc Hub Res Tes Res Qua Acc Com Total 22745 | . 1069 215 1138 815 1031 1196 532 811 721 1944 1249 835 589 234 757 1711 2066 1826 1315 1580 1111 Wait 4931 | . 384 5 141 86 15 241 96 158 192 628 510 188 280 56 133 428 674 390 104 138 84 Move 16132 | . 594 186 809 576 902 916 427 642 521 1171 660 542 308 137 567 1196 1292 1299 1134 1337 916 Hop 70 | . . . . . 4 10 . . . 4 2 5 . . 5 2 13 8 6 4 7 Pick Up 178 | . 18 3 18 25 5 10 2 3 . 11 9 5 . 4 3 12 8 18 10 12 2 Fast Attach 62 | . 2 . 4 . 1 . . 2 . 17 11 1 . 1 1 7 9 1 1 4 . Attach 125 | . 3 1 11 11 16 12 2 . 2 16 3 1 . 1 8 7 . 11 3 9 8 Detach 23 | . . . 1 . 2 2 1 . 2 8 2 . . . 2 . 1 2 . . . Swap 61 | . 5 2 7 3 7 2 1 1 . 4 10 . . 5 . 1 5 6 . 1 1 Drop 141 | . 8 2 13 4 21 1 . 5 . 7 11 4 . 5 2 7 15 8 9 12 7 Fire 324 | . 55 16 134 109 . . 3 . . . . . . . 7 . . . . . . Melee 603 | . . . . . 42 2 . . 4 74 31 23 1 25 29 47 49 83 48 63 82 Ram . | . . . . . . . . . . . . . . . . . . . . . . Kick 1 | . . . . 1 . . . . . . . . . . . . . . . . . Crush . | . . . . . . . . . . . . . . . . . . . . . . Escape Stasis 38 | . . . . . 16 . . . . . . 19 . . . . . . . . 3 Rewire 48 | . . . . . . . . . . . . 47 . . . . . . . . 1 Trap . | . . . . . . . . . . . . . . . . . . . . . . Miscellaneous 8 | . . . . . . . . . . 4 . . . . . 4 . . . . . Route ------- -11/Scrapyard -10/Materials (discovered 4 exits: *Mat x2 / [*Min x2]) -10/Mines -9/Materials (discovered 3 exits: *Mat x2 / *Min) -8/Materials (discovered 2 exits: *Fac / [*Sto]) -7/Factory -6/Factory (discovered 3 exits: *Fac / *Low x2) -6/Lower Caves (discovered 2 exits: *Low / *Zio) -6/Zion -5/Proximity Caves -5/Factory (discovered 2 exits: *Fac x2) -4/Factory -4/Extension (discovered 2 exits: *Res / *Cet) -4/Cetus (discovered 2 exits: *Res / *Arc) -4/Archives (discovered 3 exits: *Res / *Hub x2) -4/Hub_04(d) (discovered 4 exits: *Res x4) -3/Research (discovered 4 exits: *Res / Arm / *Tes x2) -3/Testing -2/Research (discovered 5 exits: *Acc x3 / *Qua x2) -2/Quarantine -1/Access -1/Command (discovered 2 exits: *Sur x2) Tau Ceti IV Orbit History --------- Turn | Location | Event 1 | -11/Scrapyard | Discovered new exit (range 0) 1 | -11/Scrapyard | Entered Materials 105 | -10/Materials | Discovered new exit (range 14) 301 | -10/Materials | Build established: Mutant 306 | -10/Materials | Discovered new exit (range 14) 390 | -10/Materials | Discovered new exit (range 16) 1083 | -10/Materials | Discovered new exit (range 16) 1422 | -10/Materials | Entered Mines 1589 | -10/Mines | Learned location of Zion (-6) 1807 | -10/Mines | Discovered new exit (range 7) 1818 | -10/Mines | Entered Materials 1818 | -9/Materials | Evolved 2 slots: Propulsion x1, Utility x1 1819 | -9/Materials | Identified exit to Mines 2418 | -9/Materials | Discovered new exit (range 16) 2605 | -9/Materials | Build established: Scavenger-Mutant 2906 | -9/Materials | Build established: Mutant 3286 | -9/Materials | Discovered new exit (range 13) 3290 | -9/Materials | Build established: Scavenger-Mutant 3608 | -9/Materials | Entered another Materials area 3608 | -8/Materials | Evolved 2 slots: Utility x2 3609 | -8/Materials | Discovered new exit (range 15) 3909 | -8/Materials | Build established: Hauler-Mutant 4696 | -8/Materials | Discovered new exit (range 3) 5056 | -8/Materials | Entered Factory 5056 | -7/Factory | Evolved 2 slots: Utility x2 5363 | -7/Factory | Build established: Hacker-Sprinter 5518 | -7/Factory | Discovered new exit (range 14) 5531 | -7/Factory | Core integrity fell below 50% 5534 | -7/Factory | Lost 3 parts (2p1u) 5538 | -7/Factory | Identified exit to Factory 5539 | -7/Factory | Entered another Factory area 5539 | -6/Factory | Evolved 2 slots: Utility x2 5597 | -6/Factory | Central database locked down 5689 | -6/Factory | Fabricated Imp. Flight Unit? 5703 | -6/Factory | Identified exit to Lower Caves 5744 | -6/Factory | Fabricated Imp. Flight Unit? 5822 | -6/Factory | Fabricated Imp. Flight Unit (x1) 5858 | -6/Factory | Repaired Imp. Flight Unit 6025 | -6/Factory | Fabricated Adv. Sensor Array? 6055 | -6/Factory | Discovered new exit (range 4) 6073 | -6/Factory | Identified exit to Factory 6091 | -6/Factory | Entered Lower Caves 6099 | -6/Lower Caves | Lost 3 parts (1p2n) 6110 | -6/Lower Caves | Learned location of 1 exit from Factory 6267 | -6/Lower Caves | Discovered new exit (range 10) 6269 | -6/Lower Caves | Identified exit to Lower Caves 6319 | -6/Lower Caves | A Derelict revealed a hidden shortcut to a safe place 6324 | -6/Lower Caves | Identified exit to Zion 6324 | -6/Lower Caves | Entered Zion 6349 | -6/Zion | Given A8's code to call for help 6383 | -6/Zion | Learned Factory stockpile data 6402 | -6/Zion | Gained Derelict followers 6460 | -6/Zion | Learned Factory repair station intel 6532 | -6/Zion | Discovered new exit (range 15) 6536 | -6/Zion | Identified exit to Proximity Caves 6679 | -6/Zion | Entered Proximity Caves 6679 | -5/Proximity Caves | Accompanied by 4 allies 6703 | -5/Proximity Caves | Learned Factory terminal intel 6722 | -5/Proximity Caves | Learned Factory emergency access door positions 7038 | -5/Proximity Caves | Discovered exit to Factory (range 3) 7039 | -5/Proximity Caves | Entered Factory 7039 | -5/Factory | Evolved 2 slots: Utility x2 7040 | -5/Factory | Identified exit to Factory 7043 | -5/Factory | Loaded intel: 19 terminal locations 7044 | -5/Factory | Loaded intel: 6 repair station locations 7542 | -5/Factory | Build established: Wizard-Sprinter 7595 | -5/Factory | Lost 3 parts (1p2u) 7673 | -5/Factory | Lost 6 parts (3n3u) 7805 | -5/Factory | Lost 3 parts (1n2u) 7846 | -5/Factory | Spotted B-75 Beast 7885 | -5/Factory | Lost 4 parts (4u) 7899 | -5/Factory | Core integrity fell below 50% 7931 | -5/Factory | Lost 4 parts (1p1n1u1w) 8021 | -5/Factory | Fabricated Cld. VTOL Module (x1) 8076 | -5/Factory | Build established: Hacker-Mutant 8103 | -5/Factory | Fabricated Cld. VTOL Module (x1) 8202 | -5/Factory | Core integrity fell below 20% 8302 | -5/Factory | Enhanced Grunt warped into view, answering call for help 8305 | -5/Factory | Enhanced Grunt warped into view, answering call for help 8311 | -5/Factory | Discovered exit to Factory (range 9) 8314 | -5/Factory | Entered another Factory area 8314 | -4/Factory | Evolved 2 slots: Utility x2 8315 | -4/Factory | Identified exit to Extension 8374 | -4/Factory | Fabricated Adv. Signal Interpreter (x2) 8392 | -4/Factory | Fabricated Adv. Hacking Suite (x1) 8401 | -4/Factory | Fabricated Med. Storage Unit (x1) 8515 | -4/Factory | Fabricated Adv. Hacking Suite (x1) 8517 | -4/Factory | Fabricated Adv. Hacking Suite (x1) 8892 | -4/Factory | Build established: Wizard-Sprinter 8916 | -4/Factory | Fabricated Exp. Cesium-ion Thruster? 8916 | -4/Factory | Local fabrication network quarantined 8984 | -4/Factory | Fabricated Exp. Cesium-ion Thruster? 9155 | -4/Factory | Entered Extension 9194 | -4/Extension | Rescued a captive Derelict 9198 | -4/Extension | Rescued a captive Derelict 9308 | -4/Extension | Identified exit to Cetus 9336 | -4/Extension | Rescued a captive Derelict 9370 | -4/Extension | Rescued a captive Derelict 9387 | -4/Extension | Crushed by falling debris 9408 | -4/Extension | Energy Cycler disabled 9409 | -4/Extension | Rescued a captive Derelict 9410 | -4/Extension | Rescued a captive Derelict 9412 | -4/Extension | Rescued a captive Derelict 9477 | -4/Extension | Rescued A7 9581 | -4/Extension | Discovered new exit (range 10) 9643 | -4/Extension | Entered Cetus 9643 | -4/Cetus | Accompanied by 18 allies 9648 | -4/Cetus | Acquired a Cetus Manufacturing Module code from A7 9692 | -4/Cetus | Spotted Cetus Guard 9692 | -4/Cetus | Spotted Cetus Guard 9693 | -4/Cetus | Spotted Cetus Guard 9693 | -4/Cetus | Spotted Cetus Guard 9693 | -4/Cetus | Allies destroyed Cetus Guard 9694 | -4/Cetus | Allies destroyed Cetus Guard 9699 | -4/Cetus | Allies destroyed Cetus Guard 9701 | -4/Cetus | Allies destroyed Cetus Guard 9722 | -4/Cetus | Started Cetus Manufacturing Module 9726 | -4/Cetus | Escorted A7 to Cetus Mainframe 9747 | -4/Cetus | Manufactured an Enhanced Grunt 9772 | -4/Cetus | Manufactured an Enhanced Grunt 9797 | -4/Cetus | Manufactured an Enhanced Grunt 9822 | -4/Cetus | Manufactured an Enhanced Grunt 9828 | -4/Cetus | Discovered new exit (range 15) 9847 | -4/Cetus | Manufactured an Enhanced Grunt 9888 | -4/Cetus | Spotted Cetus Guard 9888 | -4/Cetus | Spotted Cetus Guard 9892 | -4/Cetus | Allies destroyed Cetus Guard 9897 | -4/Cetus | Spotted Cetus Guard 9897 | -4/Cetus | Spotted Cetus Guard 9901 | -4/Cetus | Allies destroyed Cetus Guard 9903 | -4/Cetus | Allies destroyed Cetus Guard 9926 | -4/Cetus | Discovered new exit (range 15) 9928 | -4/Cetus | Met Revision 17 9985 | -4/Cetus | Identified exit to Archives 10018 | -4/Cetus | Entered Archives 10018 | -4/Archives | Accompanied by 9 allies 10024 | -4/Archives | Received a hacking code to weaken MAIN.C 10071 | -4/Archives | Discovered new exit (range 14) 10123 | -4/Archives | Discovered new exit (range 16) 10146 | -4/Archives | Discovered new exit (range 13) 10170 | -4/Archives | Identified exit to Hub_04(d) 10195 | -4/Archives | Entered Hub_04(d) 10195 | -4/Hub_04(d) | Accompanied by 4 allies 10198 | -4/Hub_04(d) | Identified exit to Research 10546 | -4/Hub_04(d) | Network Hub disabled 10564 | -4/Hub_04(d) | Network Hub disabled 10583 | -4/Hub_04(d) | Disrupted transfer network 10583 | -4/Hub_04(d) | Network Hub disabled 10583 | -4/Hub_04(d) | Network Hub disabled 10585 | -4/Hub_04(d) | Spotted Lightning 10592 | -4/Hub_04(d) | Spotted Lightning 10597 | -4/Hub_04(d) | Core integrity fell below 50% 10599 | -4/Hub_04(d) | Entered Research 10599 | -3/Research | Evolved 2 slots: Utility x2 10626 | -3/Research | Lost 14 parts (2p4n5u3w) 10651 | -3/Research | Spotted B-86 Titan 10686 | -3/Research | Found Prototype Hackware 10686 | -3/Research | Identified Exp. Hacking Suite 10702 | -3/Research | Identified exit to Armory 10702 | -3/Research | Identified exit to Testing 10799 | -3/Research | Revision forces began assault on 0b10 10801 | -3/Research | Met up with Revision 17++ 10878 | -3/Research | Fabricated Exp. Q-thruster? 10960 | -3/Research | Fabricated Exp. Q-thruster? 11006 | -3/Research | Local fabrication network quarantined 11065 | -3/Research | Fabricated Exp. Q-thruster? 11299 | -3/Research | Research terminal network offline 11308 | -3/Research | Discovered new exit (range 42) 11318 | -3/Research | Found Vibroblade 11320 | -3/Research | Found Vibroblade 11322 | -3/Research | Found Vibroblade 11353 | -3/Research | Spotted Executioner 11356 | -3/Research | Spotted Striker 11457 | -3/Research | Spotted Striker 11474 | -3/Research | Spotted Executioner 11487 | -3/Research | Entered Testing 11497 | -3/Testing | Found Ghost Barrier 11637 | -3/Testing | Found Portable AFG 11652 | -3/Testing | Fabricated Inertial Stasis Machine? 11845 | -3/Testing | Fabricated Imp. Quantum Reactor (x1) 11899 | -3/Testing | Fabricated Exp. Sensor Array? 11988 | -3/Testing | Fabricated Exp. Sensor Array? 12081 | -3/Testing | Found Exp. Hacking Suite 12084 | -3/Testing | Identified exit to Research 12166 | -3/Testing | Found Prototype Device 12181 | -3/Testing | Spotted Superbehemoth 12182 | -3/Testing | Spotted PY-31K5Z8GPWA 12228 | -3/Testing | Found Exp. System Shield 12240 | -3/Testing | Identified AEGIS Remote Shield 12349 | -3/Testing | Fabricated Exp. Q-thruster? 12443 | -3/Testing | Found Prototype Energy Gun 12443 | -3/Testing | Identified Warp Gun 12484 | -3/Testing | Local fabrication network quarantined 12518 | -3/Testing | Entered Research 12518 | -2/Research | Evolved 2 slots: Power x1, Propulsion x1 12552 | -2/Research | Identified exit to Quarantine 12563 | -2/Research | Discovered new exit (range 20) 12563 | -2/Research | Identified exit to Access 12724 | -2/Research | Fabricated Med. Storage Unit (x1) 12782 | -2/Research | Spotted B-90 Cyclops 12835 | -2/Research | Fabricated Exp. Q-thruster? 12954 | -2/Research | Fabricated Exp. Q-thruster (x1) 12990 | -2/Research | Spotted B-90 Cyclops 13173 | -2/Research | Spotted B-90 Cyclops 13189 | -2/Research | Spotted B-90 Cyclops 13225 | -2/Research | Fabricated Exp. Signal Interpreter? 13248 | -2/Research | Fabricated Imp. Quantum Reactor? 13281 | -2/Research | Lost 3 parts (2p1u) 13304 | -2/Research | Local fabrication network quarantined 13310 | -2/Research | Allied Derelicts emerged from ambush trap array 13313 | -2/Research | Entered Quarantine 13332 | -2/Quarantine | Found Alien Artifact 13343 | -2/Quarantine | Identified Stasis Generator 13368 | -2/Quarantine | Spotted Alpha 7 13402 | -2/Quarantine | Found Alien Slashing Weapon 13420 | -2/Quarantine | Found Alien Artifact 13426 | -2/Quarantine | Identified Subatomic Replicator 13426 | -2/Quarantine | Identified Sigix Broadsword 13458 | -2/Quarantine | Found Alien Artifact 13481 | -2/Quarantine | Identified Phase Armor 13489 | -2/Quarantine | Found Alien Artifact 13558 | -2/Quarantine | Found Alien Artifact 13562 | -2/Quarantine | Identified Core Reset Matrix 13562 | -2/Quarantine | Identified Matter Drive 13589 | -2/Quarantine | Used Core Reset Matrix 13593 | -2/Quarantine | Detected hypermatrix surge 13593 | -2/Quarantine | Sensed 15 artifacts in vicinity 13645 | -2/Quarantine | Met incapacitated Sigix Warrior 13645 | -2/Quarantine | Lockdown squad dispatched 13646 | -2/Quarantine | Acquired the access code to the Sigix quarantine chamber 13646 | -2/Quarantine | Unlocked Sigix quarantine chamber 13677 | -2/Quarantine | Spotted Lightning 13682 | -2/Quarantine | Discovered exit to Access (range 8) 13683 | -2/Quarantine | Entered Access 13683 | -1/Access | Evolved 2 slots: Propulsion x1, Utility x1 13712 | -1/Access | Found Prototype Processor 13753 | -1/Access | Fabricated Nanoactuators? 13770 | -1/Access | Used Subatomic Replicator to replicate Sigix Broadsword 13803 | -1/Access | Identified exit to Command 13831 | -1/Access | Fabricated Imp. Quantum Reactor? 13887 | -1/Access | Local fabrication network quarantined 13930 | -1/Access | Fabricated Imp. Quantum Reactor (x1) 13933 | -1/Access | First assault squad dispatched 14130 | -1/Access | Identified Exp. Core Analyzer 14173 | -1/Access | Entered Command 14178 | -1/Command | Disengaged cave seal 14178 | -1/Command | Assembled emerged from the dark tunnel 14198 | -1/Command | Identified exit to Surface 14392 | -1/Command | Disengaged cave seal 14397 | -1/Command | Spotted B-99 Colossus 14417 | -1/Command | Destroyed B-99 Colossus 14430 | -1/Command | Spotted B-99 Colossus 14433 | -1/Command | Spotted Executioner 14433 | -1/Command | Spotted Executioner 14433 | -1/Command | Spotted Striker 14433 | -1/Command | Spotted B-99 Colossus 14440 | -1/Command | Spotted M Guard 14440 | -1/Command | Spotted M Guard 14440 | -1/Command | Spotted Combat Programmer 14442 | -1/Command | Spotted Combat Programmer 14444 | -1/Command | Build established: Mechanic-Sprinter 14446 | -1/Command | Met MAIN.C 14482 | -1/Command | System corruption reached 10% 14484 | -1/Command | Spotted Alpha 7 14491 | -1/Command | Spotted Executioner 14492 | -1/Command | Spotted Executioner 14493 | -1/Command | Spotted Striker 14494 | -1/Command | Spotted Alpha 7 14500 | *** | Destroyed 0B10! Last Messages --------------- 14497_ Imp. Quantum Reactor destroyed. 14497_ Slug penetrates Wall. 14497_ Knocked back. 14498_ Adv. Armor Integrity Analyzer destroyed. 14498_ Penetrated by Slug. 14498_ Inertial Stasis Machine destroyed. 14498_ Slug penetrates Access Shell. 14498_ Slug penetrates Wall. 14498_ Penetrated by Slug. 14498_ Exp. Q-thruster destroyed. 14498_ Slug penetrates Wall. 14498_ Imp. Stasis Canceller destroyed. 14498_ Penetrated by Slug. 14498_ Slug penetrates Reinforced Barrier. 14499_ Slug penetrates Wall. 14499_ Dropped Med. Storage Unit. 14500_ Slug penetrates Wall. 14500_ Penetrated by Slug. 14500_ Slug penetrates Access Shell. 14500_ Inertial Stasis Machine destroyed. Map ----- +----------------------------------------------------+ | ???????# """" # %#? """ # # ""T"" #?? | | ?????????? # #? "T # + #?? | | ??????????? # #??""" # # #?? | | ??????????? # #?? ! # # #?? | | #####???????##### #??? ? #%+ #?? | | # #???????????# #???###???##"# # #?? | | # ############# ############ # #?? | | + % "##"""#####?? | | + "##"" ####### | | + ! " "" # | | + %= " "" # | | + + | | # ######## #################+"""""%" # ! o | | # #??????# #??????????????#" %!# ######+ | | #####??????# #??????????????## =[ # #????# | | ???????????# ###?????????????# % # #????# | | ???????????# T"#?????????????# [ # ###### | | ???????????## "#?????????????# ![%= # # # | | ????????????# "##???????####### !%!! # # # | | ????????????# #"#########""""## =[% # # # | | ????????????# ###### ## % # # | | ????????????# #????# * ## %|% " " | | ????????????#o#????# !!= ## % % / | | ????????????# #????# """""!! ## !%! # | | ????????????# #????????" #####+#### | | ????????????# ?????????" @" #?# =!* ## # # | | ????????????? ?????????" "" ### =% # # | | ????????????? ?????????" hhE ! ] # | | ???????????????????????"""" %### =% | | ????????????????????????? #?# = # # # | | ?????????????????????? BB#?# # ## | | ???????????????????# BB#?# ## | | ????????????????????### ####?# ## | | ?????????????????????# ^^ ????# ## | | ?????????????????????## #????# # # | | ?????????????????????# ????# ## [ ## | | ?????????????????????## #????# ## # # ##? | | ?????????????????????? ????######### # #?? | | ?????????????????????## #?????????????#####?? | | ??????????????????????? ???????????????????? | | ??????????????????????????? ?????????????????????? | | ?????????????????????????????????????????????????? | | ?????????????????????????????????????????????????? | | ?????????????????????????????????????????????????? | | ?????????????????????????????????????????????????? | | ?????????????????????????????????????????????????? | | ?????????????????????????????????????????????????? | | ?????????????????????????????????????????????????? | | ?????????????????????????????????????????????????? | | ?????????????????????????????????????????????????? | +----------------------------------------------------+ Best States ------------- Heat Dissipation 52 Energy Generation 72 Energy Capacity 600 Matter Stores 300 Matter Capacity 300 Sight Range 22 Robot Scan Range 30 Terrain Scan Density 10 ECM Strength 2 Cloak Strength 2 Power Amplification 60 Additional Mass Support 32 Core Shielding 30 Power Shielding 33 Propulsion Shielding 66 Melee Speed Boost 50 Evasion (%) 76 Melee Accuracy 40 Core Analysis 10 Armor Integrity Analysis 66 Salvage Targeting 1 Stasis Canceling 2 Offensive Hacking 84 Defensive Hacking 60 Item Schematics ----------------- Exp. Q-thruster | -2/Quarantine | Hacked Imp. Quantum Reactor | -2/Quarantine | Hacked Nanoactuators | -2/Quarantine | Hacked Exp. Sensor Array | -2/Quarantine | Hacked Exp. Signal Interpreter | -2/Quarantine | Hacked Exp. Melee Analysis Suite | -2/Quarantine | Hacked Robot Schematics ------------------ None Fabricated ------------ Imp. Flight Unit | x1 | -6/Factory Imp. Flight Unit | x1 | -6/Factory Imp. Flight Unit | x1 | -6/Factory Adv. Sensor Array | x1 | -6/Factory Cld. VTOL Module | x1 | -5/Factory Cld. VTOL Module | x1 | -5/Factory Adv. Signal Interpreter | x2 | -4/Factory Adv. Hacking Suite | x1 | -4/Factory Med. Storage Unit | x1 | -4/Factory Adv. Hacking Suite | x1 | -4/Factory Adv. Hacking Suite | x1 | -4/Factory Exp. Cesium-ion Thruster | x1 | -4/Factory Exp. Cesium-ion Thruster | x1 | -4/Factory Exp. Q-thruster | x1 | -3/Research Exp. Q-thruster | x1 | -3/Research Exp. Q-thruster | x1 | -3/Research Inertial Stasis Machine | x1 | -3/Testing Imp. Quantum Reactor | x1 | -3/Testing Exp. Sensor Array | x1 | -3/Testing Exp. Sensor Array | x1 | -3/Testing Exp. Q-thruster | x1 | -3/Testing Med. Storage Unit | x1 | -2/Research Exp. Q-thruster | x1 | -2/Research Exp. Q-thruster | x1 | -2/Research Exp. Signal Interpreter | x1 | -2/Research Imp. Quantum Reactor | x1 | -2/Research Nanoactuators | x2 | -1/Access Imp. Quantum Reactor | x1 | -1/Access Imp. Quantum Reactor | x1 | -1/Access Alien Tech Used ----------------- Core Reset Matrix Subatomic Replicator Sigix Broadsword Achievements -------------- 404 Meet Your Maker Revolutionary Research Ultimate Loadout Challenges ------------ None Game ------ Seed ColdTrackerJammer Manual? 0 Play Time 06:26:10 Cumulative 194.6 hours Start 2019.11.20 @ 14:03:39 End 2019.11.21 @ 17:56:34 Sessions 7 Manual Loads 0 Difficulty Rogue Special Mode None Game No. 111 Rogue 103 Adventurer 8 Explorer 0 Win Type 3 Total 8 Types 6/0/0/2/0/0/0 Lore% 71 Gallery% 72 Achievement% 61 Wizard Run 0 Options --------- ASCII 0 Keyboard 0 Movement Mouse Keybinds 0 Fullscreen 2 Font 14/SmallcapsGlow Map View 72x52 Tactical HUD 1 Map Filters NONE Filters NONE Steam 0 RUN: 241cd13f-5d86-48e0-b99c-711067830cce